bitfinex/quotes_SOLUSD_20241105
["timestamp","ask_amount","ask_price","bid_price","bid_amount"]
[1730765323416,19.0427386,158.87,158.83,22.036]
[1730765324118,19.0427386,158.87,158.83,15.74]
[1730765324420,19.0427386,158.86,158.83,15.74]
[1730765325318,19.0427386,158.85,158.83,15.74]
[1730765326417,19.0427386,158.85,158.79,19.0427386]
[1730765326632,16.10757,158.92,158.79,19.0427386]
[1730765326633,19.0427386,158.82,158.79,22.0407]
[1730765326799,19.0427386,158.8,158.76,15.7468]
[1730765326998,0.12549,158.84,158.76,19.0427386]
[1730765326999,19.0427386,158.82,158.76,19.0427386]
[1730765327508,19.0427386,158.82,158.77,19.0427386]
[1730765327713,19.0427386,158.83,158.78,19.0427386]
[1730765328421,0.12549,158.84,158.76,19.0427386]
[1730765328422,19.0427386,158.82,158.76,19.0427386]
[1730765328724,19.0427386,158.81,158.77,22.0444]
[1730765329217,19.0427386,158.82,158.77,41.0871386]
[1730765329910,6.42129,158.84,158.77,41.0871386]
[1730765329911,19.0427386,158.8,158.77,15.746]
[1730765330296,19.0427386,158.78,158.74,22.0485]
[1730765330623,19.0427386,158.77,158.74,22.0485]
[1730765330916,19.0427386,158.78,158.74,22.0485]
[1730765331318,19.0427386,158.77,158.74,15.7489]
[1730765331501,19.0427386,158.75,158.72,6.3003]
[1730765331702,19.0427386,158.74,158.71,22.3592117]
[1730765331920,19.0427386,158.73,158.71,22.3592117]
[1730765332106,19.0427386,158.73,158.71,16.0585117]
[1730765332614,19.0427386,158.74,158.71,22.3593117]
[1730765334942,19.0427386,158.75,158.71,22.3593117]
[1730765335532,19.0427386,158.76,158.71,22.3593117]
[1730765335729,25.3984386,158.77,158.71,41.4020503]
[1730765336040,19.0427386,158.75,158.71,22.3593117]
[1730765336332,19.0427386,158.73,158.71,22.3593117]
[1730765336847,19.0427386,158.74,158.71,22.3593117]
[1730765338739,19.0427386,158.75,158.71,22.3593117]
[1730765339341,6.299,158.76,158.71,16.0585117]
[1730765339342,19.0427386,158.74,158.71,16.0585117]
[1730765339538,19.0427386,158.75,158.71,22.3593117]
[1730765339742,19.0427386,158.74,158.71,22.3593117]
[1730765340547,19.0427386,158.73,158.71,16.0585117]
[1730765340752,19.0427386,158.72,158.71,0.3067117]
[1730765341054,38.2109672,158.72,158.71,0.3067117]
[1730765341222,59.6352672,158.72,158.71,0.3067117]
[1730765341625,0.12549,158.69,158.63,0.3067117]
[1730765341818,19.0427386,158.64,158.63,0.3067117]
[1730765343245,25.3462386,158.64,158.63,0.3067117]
[1730765343451,44.5144672,158.64,158.63,0.3067117]
[1730765343944,66.9279472,158.64,158.63,0.3067117]
[1730765345517,86.9279472,158.64,158.63,0.3067117]
[1730765345934,0.37647,158.63,158.55,16.0745117]
[1730765346142,19.0427386,158.56,158.55,0.3067117]
[1730765346320,0.37647,158.63,158.55,0.3067117]
[1730765346321,19.0427386,158.57,158.55,0.3067117]
[1730765347024,19.0427386,158.56,158.55,0.3067117]
[1730765347425,19.0427386,158.57,158.55,0.3067117]
[1730765347839,38.0854772,158.56,158.55,0.3067117]
[1730765348148,38.4619472,158.56,158.55,0.3067117]
[1730765348452,44.8543472,158.56,158.55,0.3067117]
[1730765349031,60.4577472,158.56,158.55,0.3067117]
[1730765349632,110.5413312,158.56,158.55,0.3067117]
[1730765349849,19.0427386,158.49,158.47,0.3067117]
[1730765350031,19.0427386,158.49,158.47,6.6168117]
[1730765350223,19.0427386,158.51,158.47,6.6168117]
[1730765351332,19.0427386,158.51,158.47,22.3926117]
[1730765351534,0.12549,158.5,158.47,16.0825117]
[1730765351739,19.0427386,158.49,158.47,16.0825117]
[1730765352331,19.0427386,158.5,158.47,16.0825117]
[1730765353151,19.0427386,158.52,158.47,22.3928117]
[1730765355644,19.0427386,158.55,158.49,19.0427386]
[1730765355948,19.0427386,158.54,158.49,19.0427386]
[1730765356152,19.0427386,158.53,158.48,19.0427386]
[1730765356326,19.0427386,158.54,158.48,19.0427386]
[1730765356531,19.1682286,158.55,158.49,19.0427386]
[1730765356729,19.0427386,158.55,158.5,22.0819]
[1730765358158,19.0427386,158.54,158.5,22.0819]
[1730765358843,19.0427386,158.54,158.5,15.7728]
[1730765359369,19.0427386,158.53,158.5,15.7728]
[1730765359555,19.0427386,158.52,158.48,6.3099]
[1730765360161,19.0427386,158.52,158.48,22.0847]
[1730765360561,19.0427386,158.53,158.48,22.0847]
[1730765360756,19.0427386,158.54,158.48,41.1274386]
[1730765361659,19.0427386,158.53,158.47,19.3494503]
[1730765361865,19.0427386,158.5,158.47,0.3067117]
[1730765362247,19.0427386,158.51,158.47,6.6168117]
[1730765362660,19.0427386,158.51,158.47,6.1168117]
[1730765363667,19.0427386,158.51,158.46,6.3106]
[1730765363877,19.0427386,158.56,158.4,50.6077386]
[1730765363878,19.0427386,158.47,158.41,34.8241386]
[1730765364042,19.0427386,158.47,158.42,22.0927]
[1730765364239,19.0427386,158.46,158.4,25.63570351]
[1730765364439,19.0427386,158.44,158.4,6.3129]
[1730765365272,19.0427386,158.44,158.39,22.0971]
[1730765365650,19.0427386,158.44,158.39,41.1398386]
[1730765367055,19.0427386,158.45,158.39,41.1398386]
[1730765367668,19.0427386,158.44,158.39,41.1398386]
[1730765367866,19.0427386,158.45,158.39,41.1398386]
[1730765368266,25.3538386,158.45,158.39,41.1398386]
[1730765368458,19.0427386,158.46,158.41,19.0427386]
[1730765368770,19.0427386,158.47,158.41,19.0427386]
[1730765369542,19.0427386,158.46,158.4,19.0427386]
[1730765370043,19.0427386,158.47,158.41,19.0427386]
[1730765371069,25.3531386,158.47,158.41,25.3550386]
[1730765371362,19.0427386,158.46,158.41,6.3123]
[1730765372152,19.0427386,158.46,158.41,41.1368386]
[1730765372349,19.0427386,158.47,158.41,41.1368386]
[1730765373048,19.0427386,158.46,158.41,41.1368386]
[1730765373761,19.0427386,158.46,158.41,22.0941]
[1730765373960,19.0427386,158.46,158.37,23.776884]
[1730765373961,19.0427386,158.42,158.38,6.3135]
[1730765374568,19.0427386,158.42,158.38,15.7848]
[1730765375073,19.0427386,158.42,158.38,22.0987]
[1730765376062,19.0427386,158.41,158.38,22.0987]
[1730765376257,19.0427386,158.42,158.38,22.0987]
[1730765376473,19.0427386,158.42,158.38,15.7848]
[1730765378375,19.0427386,158.41,158.38,15.7848]
[1730765378583,19.0427386,158.42,158.38,15.7848]
[1730765380183,19.0427386,158.44,158.39,19.0427386]
[1730765380367,19.0427386,158.44,158.38,34.8275386]
[1730765381588,19.0427386,158.43,158.38,41.1414386]
[1730765383372,19.0427386,158.45,158.39,19.0427386]
[1730765384467,19.0427386,158.45,158.4,22.0959]
[1730765384668,19.0427386,158.44,158.4,22.0959]
[1730765385179,19.0427386,158.46,158.4,41.1386386]
[1730765385486,19.0427386,158.46,158.41,2.13298006]
[1730765385687,19.0427386,158.46,158.4,41.1386386]
[1730765385985,19.0427386,158.46,158.41,2.13305479]
[1730765386281,19.0427386,158.46,158.4,41.1386386]
[1730765386459,19.0427386,158.46,158.41,8.44578389]
[1730765386666,19.0427386,158.46,158.41,22.0941]
[1730765387881,19.0427386,158.46,158.42,2.13644565]
[1730765388076,25.3533386,158.47,158.41,44.55555826]
[1730765388278,25.3533386,158.47,158.42,5.55784316]
[1730765388489,25.3533386,158.47,158.43,2.13632302]
[1730765388670,19.0427386,158.45,158.42,22.0929]
[1730765388875,19.0427386,158.45,158.43,2.13833485]
[1730765389073,19.0427386,158.45,158.44,2.13833485]
[1730765392984,19.0427386,158.45,158.44,2.1449721]
[1730765395190,19.0427386,158.45,158.42,22.0929]
[1730765395371,19.0427386,158.45,158.43,2.14681286]
[1730765395568,19.0427386,158.45,158.42,15.7808]
[1730765395765,19.0427386,158.44,158.42,15.7808]
[1730765396184,19.0427386,158.45,158.42,15.7808]
[1730765397388,12.25654731,158.45,158.42,15.7808]
[1730765398687,12.25654731,158.47,158.42,22.0931]
[1730765398887,12.25654731,158.5,158.44,12.25654731]
[1730765399070,12.25654731,158.49,158.43,12.25654731]
[1730765399276,12.25654731,158.48,158.42,34.34964731]
[1730765399668,12.25654731,158.48,158.43,2.14711718]
[1730765399876,12.25654731,158.48,158.42,34.34964731]
[1730765400089,12.25654731,158.48,158.43,2.14691594]
[1730765400392,12.25654731,158.46,158.43,8.45881594]
[1730765400575,12.25654731,158.46,158.43,6.3119]
[1730765400762,12.25654731,158.44,158.42,22.093]
[1730765400969,12.25654731,158.45,158.42,22.093]
[1730765401375,12.25654731,158.46,158.42,22.093]
[1730765401588,12.38203731,158.47,158.42,22.093]
[1730765401897,12.25654731,158.47,158.42,22.093]
[1730765402076,12.25654731,158.49,158.43,12.25654731]
[1730765402471,12.25654731,158.47,158.42,34.34954731]
[1730765402893,12.25654731,158.47,158.43,2.14706282]
[1730765403082,12.25654731,158.47,158.42,34.34954731]
[1730765403393,12.25654731,158.49,158.43,12.25654731]
[1730765403912,12.38203731,158.5,158.44,12.25654731]
[1730765404188,12.25654731,158.49,158.45,15.7778]
[1730765404370,12.25654731,158.48,158.45,15.7778]
[1730765404573,12.25654731,158.46,158.45,15.7778]
[1730765404793,12.25654731,158.46,158.42,22.0926]
[1730765405166,12.25654731,158.48,158.43,14.40557785]
[1730765405502,19.14199617,158.5,158.44,21.29200204]
[1730765405688,25.45079617,158.51,158.45,19.14199617]
[1730765405895,19.14199617,158.51,158.45,19.14199617]
[1730765406068,19.14199617,158.51,158.46,22.0875]
[1730765406669,19.14199617,158.52,158.46,41.22949617]
[1730765406886,19.14199617,158.55,158.49,19.14199617]
[1730765407384,19.14199617,158.54,158.49,19.14199617]
[1730765408186,19.14199617,158.55,158.5,25.45109617]
[1730765408389,19.14199617,158.56,158.51,19.14199617]
[1730765408896,19.14199617,158.56,158.5,25.45109617]
[1730765409290,19.14199617,158.55,158.5,41.22389617]
[1730765409496,19.14199617,158.57,158.51,19.14199617]
[1730765409686,12.5947,158.58,158.52,19.14199617]
[1730765409687,19.14199617,158.58,158.52,19.14199617]
[1730765410204,19.14199617,158.56,158.5,72.76959617]
[1730765410375,19.14199617,158.57,158.51,45.06143746]
[1730765410582,6.3056,158.59,158.5,53.6276]
[1730765410583,19.14199617,158.58,158.52,19.14199617]
[1730765411006,19.14199617,158.58,158.53,22.0777]
[1730765411394,19.14199617,158.57,158.53,22.0777]
[1730765411585,19.14199617,158.55,158.53,15.7698]
[1730765411894,19.14199617,158.55,158.5,22.0817]
[1730765412099,19.14199617,158.54,158.5,22.0817]
[1730765413027,19.14199617,158.55,158.5,41.22369617]
[1730765413503,19.14199617,158.53,158.48,6.3096]
[1730765413688,6.3063,158.57,158.48,6.3096]
[1730765413689,19.14199617,158.54,158.49,19.14199617]
[1730765414509,19.14199617,158.54,158.48,41.22639617]
[1730765414711,19.14199617,158.53,158.48,41.22639617]
[1730765415202,19.14199617,158.54,158.48,41.22639617]
[1730765415393,19.14199617,158.54,158.49,19.14199617]
[1730765415585,19.14199617,158.54,158.48,41.22639617]
[1730765415785,19.14199617,158.51,158.48,15.7748]
[1730765415981,19.14199617,158.5,158.48,15.7748]
[1730765416708,19.14199617,158.5,158.46,6.3106]
[1730765417607,19.14199617,158.49,158.45,22.0887]
[1730765417798,6.3092,158.5,158.45,22.0887]
[1730765417799,25.45119617,158.5,158.45,22.0887]
[1730765417996,25.45039617,158.52,158.46,19.14199617]
[1730765418302,19.14199617,158.54,158.48,19.14199617]
[1730765419011,19.14199617,158.55,158.5,19.14199617]
[1730765419189,19.14199617,158.54,158.48,19.14199617]
[1730765419388,19.14199617,158.54,158.49,19.14199617]
[1730765420194,19.14199617,158.54,158.5,6.3091]
[1730765420906,25.16779617,158.56,158.5,41.22389617]
[1730765421285,19.14199617,158.55,158.5,22.0819]
[1730765421489,19.14199617,158.52,158.48,6.3097]
[1730765422312,19.14199617,158.5,158.47,15.7756]
[1730765422603,19.14199617,158.49,158.45,6.3111]
[1730765422905,19.14199617,158.5,158.45,22.0889]
[1730765423098,19.14199617,158.5,158.45,41.23089617]
[1730765423795,6.3079,158.53,158.45,15.7778]
[1730765423796,19.14199617,158.48,158.45,15.7778]
[1730765424592,19.14199617,158.46,158.42,15.7806]
[1730765424797,19.14199617,158.44,158.4,6.5916263]
[1730765425100,19.14199617,158.44,158.4,22.0958]
[1730765425310,19.14199617,158.44,158.4,22.244309]
[1730765425623,19.14199617,158.48,158.4,22.244309]
[1730765425624,19.14199617,158.43,158.4,15.931309]
[1730765426111,25.45349617,158.44,158.4,15.931309]
[1730765426329,19.14199617,158.44,158.4,22.244409]
[1730765427020,19.26748617,158.45,158.4,22.244409]
[1730765427197,19.14199617,158.44,158.4,22.244409]
[1730765427514,19.14199617,158.43,158.4,15.931309]
[1730765427809,19.14199617,158.44,158.4,15.931309]
[1730765428111,19.14199617,158.44,158.4,22.244409]
[1730765428909,19.26748617,158.45,158.4,41.38640517]
[1730765429120,15.771,158.52,158.41,19.14199617]
[1730765429121,19.26748617,158.46,158.41,19.14199617]
[1730765429303,19.14199617,158.44,158.4,22.244409]
[1730765429909,19.14199617,158.45,158.4,22.244409]
[1730765430412,19.14199617,158.46,158.4,41.38640517]
[1730765430720,19.14199617,158.47,158.42,19.14199617]
[1730765430916,19.14199617,158.49,158.43,19.14199617]
[1730765431227,19.14199617,158.51,158.46,19.14199617]
[1730765431409,19.14199617,158.52,158.47,19.14199617]
[1730765431724,19.14199617,158.49,158.44,19.14199617]
[1730765431918,19.14199617,158.49,158.44,22.0903]
[1730765432413,25.45119617,158.5,158.44,41.23229617]
[1730765433114,19.14199617,158.49,158.44,41.23229617]
[1730765433712,19.14199617,158.51,158.46,19.14199617]
[1730765434330,19.14199617,158.53,158.47,19.14199617]
[1730765434517,19.14199617,158.54,158.49,19.14199617]
[1730765434816,19.14199617,158.54,158.45,43.776884]
[1730765434817,19.14199617,158.54,158.48,19.14199617]
[1730765435019,19.14199617,158.55,158.49,19.14199617]
[1730765435215,19.14199617,158.55,158.5,22.0819]
[1730765435611,19.14199617,158.56,158.5,41.22389617]
[1730765435815,19.14199617,158.57,158.51,19.14199617]
[1730765436124,19.14199617,158.59,158.53,19.14199617]
[1730765436327,12.3587,158.62,158.52,19.14199617]
[1730765436328,19.14199617,158.58,158.52,19.14199617]
[1730765437103,19.14199617,158.57,158.51,19.14199617]
[1730765437296,19.14199617,158.55,158.51,22.0805]
[1730765437498,19.14199617,158.54,158.49,6.3094]
[1730765437719,19.14199617,158.51,158.46,25.45259617]
[1730765438021,19.14199617,158.51,158.46,6.3106]
[1730765438323,22.8333,158.55,158.45,16.0292]
[1730765438324,19.14199617,158.5,158.45,16.0292]
[1730765438507,19.14199617,158.5,158.46,15.7768]
[1730765439323,19.14199617,158.51,158.46,15.7768]
[1730765440025,19.14199617,158.51,158.46,34.91879617]
[1730765440237,25.57538617,158.54,158.48,19.14199617]
[1730765440606,19.14199617,158.53,158.47,19.14199617]
[1730765440926,25.57089617,158.55,158.49,19.14199617]
[1730765441118,19.14199617,158.57,158.51,19.14199617]
[1730765442207,19.14199617,158.57,158.48,15.4198]
[1730765442208,19.14199617,158.56,158.5,19.14199617]
[1730765442415,19.14199617,158.54,158.49,22.0833]
[1730765442611,19.14199617,158.52,158.49,15.7738]
[1730765443018,19.14199617,158.53,158.49,15.7738]
[1730765443630,19.14199617,158.51,158.46,6.3103]
[1730765443829,19.14199617,158.51,158.46,25.45229617]
[1730765444008,19.14199617,158.52,158.46,25.45229617]
[1730765444211,19.14199617,158.53,158.47,19.14199617]
[1730765444408,19.14199617,158.54,158.48,19.14199617]
[1730765444931,19.14199617,158.54,158.49,19.14199617]
[1730765445427,25.44949617,158.54,158.49,25.45129617]
[1730765445836,6.3075,158.54,158.49,25.45129617]
[1730765446415,25.57458617,158.55,158.49,41.22509617]
[1730765447041,19.14199617,158.53,158.49,22.0831]
[1730765447531,19.14199617,158.52,158.49,15.7738]
[1730765447717,19.14199617,158.53,158.49,15.7738]
[1730765447906,19.14199617,158.51,158.46,22.0869]
[1730765448112,19.14199617,158.49,158.46,15.7766]
[1730765448312,19.14199617,158.48,158.44,6.3114]
[1730765448523,19.14199617,158.49,158.44,8.45420692]
[1730765448725,0.12549,158.51,158.45,19.14199617]
[1730765448726,19.14199617,158.5,158.45,19.14199617]
[1730765449435,25.57618617,158.51,158.46,19.14199617]
[1730765449937,6.43419,158.51,158.46,19.14199617]
[1730765450311,19.14199617,158.5,158.45,22.0889]
[1730765450547,19.14199617,158.49,158.43,19.29050517]
[1730765450828,19.14199617,158.49,158.43,41.38220517]
[1730765452529,25.45169617,158.49,158.43,41.38220517]
[1730765453429,19.14199617,158.48,158.43,41.38220517]
[1730765453642,19.14199617,158.48,158.43,22.240209]
[1730765453928,19.14199617,158.48,158.43,15.928309]
[1730765455132,19.39297617,158.49,158.43,41.38220517]
[1730765455426,0.12549,158.49,158.45,19.14199617]
[1730765455629,25.45109617,158.5,158.45,25.45289617]
[1730765455825,25.45109617,158.5,158.44,19.14199617]
[1730765456040,25.45109617,158.5,158.44,25.45339617]
[1730765456329,6.3091,158.5,158.45,19.14199617]
[1730765456636,25.45079617,158.51,158.45,19.14199617]
[1730765457324,19.14199617,158.52,158.46,19.14199617]
[1730765457538,25.45029617,158.53,158.47,25.45189617]
[1730765457835,25.45029617,158.53,158.47,41.22769617]
[1730765459525,19.14199617,158.53,158.47,41.22769617]
[1730765459924,25.44979617,158.54,158.48,19.14199617]
[1730765460330,19.14199617,158.53,158.47,41.22769617]
[1730765460645,19.14199617,158.5,158.47,15.7758]
[1730765461747,25.45129617,158.5,158.44,41.23219617]
[1730765463044,19.14199617,158.47,158.43,0.148509]
[1730765463218,19.14199617,158.48,158.43,0.148509]
[1730765463865,41.33119617,158.56,158.43,0.148509]
[1730765463866,11.56548246,158.86,158.57,23.902374]
[1730765464148,4.32974446,158.79,158.78,20.0]
[1730765464347,0.3069962,158.87,158.81,0.12549]
[1730765464534,0.3069962,158.95,158.88,16.20222312]
[1730765464724,0.3069962,158.95,158.89,43.776884]
[1730765464921,11.8724782,159.03,158.94,58.28399234]
[1730765465140,0.2635276,159.03,159.02,19.14199617]
[1730765465521,0.2635276,159.03,159.02,42.91888017]
[1730765465832,0.2635276,159.03,159.02,19.14199617]
[1730765466312,19.14199617,159.08,159.0,19.14199617]
[1730765466516,0.146,159.07,159.02,19.14199617]
[1730765466734,0.146,159.07,159.04,19.14199617]
[1730765467127,0.146,159.07,159.02,19.14199617]
[1730765467437,0.146,159.07,159.02,49.41415549]
[1730765468040,0.146,159.07,159.04,49.41415549]
[1730765468344,0.146,159.07,159.06,49.41415549]
[1730765468549,0.146,159.07,159.05,49.41415549]
[1730765468841,0.146,159.07,159.04,23.776884]
[1730765469235,0.146,159.07,159.0,43.776884]
[1730765471256,0.146,159.07,158.96,15.7272]
[1730765471257,0.37647,159.06,158.96,15.7272]
[1730765471628,0.146,159.05,158.96,15.7272]
[1730765472750,0.146,159.05,158.98,23.776884]
[1730765473733,0.146,159.05,158.98,30.066784]
[1730765473941,0.146,159.05,158.98,45.791984]
[1730765474255,0.146,159.05,159.0,23.776884]
[1730765474836,0.146,159.05,158.99,43.776884]
[1730765475340,0.146,159.05,158.96,6.2906]
[1730765475655,0.37647,159.04,158.93,15.7297]
[1730765475949,0.37647,159.02,158.91,4.86799468]
[1730765476150,0.37647,159.02,158.91,26.89279468]
[1730765476355,0.146,159.01,158.91,26.89279468]
[1730765476942,0.146,159.01,158.92,0.25098]
[1730765477260,0.146,159.01,158.94,45.797684]
[1730765479763,0.146,159.01,158.91,4.86799468]
[1730765479933,0.146,159.01,158.92,6.2923]
[1730765480139,0.146,159.01,158.93,20.0]
[1730765481262,0.146,159.01,158.94,23.776884]
[1730765482162,6.4352,159.01,158.94,23.776884]
[1730765482341,0.12549,159.0,158.94,23.776884]
[1730765482658,0.146,158.99,158.91,4.86799468]
[1730765483857,0.146,158.99,158.92,23.776884]
[1730765484837,6.4357,158.99,158.92,23.776884]
[1730765486760,6.4357,158.99,158.91,23.776884]
[1730765486945,0.146,158.99,158.91,23.776884]
[1730765487563,6.4357,158.99,158.91,23.776884]
[1730765488454,0.12549,158.98,158.91,23.776884]
[1730765488659,0.37647,158.98,158.86,15.7364]
[1730765489051,0.37647,158.98,158.86,22.0312]
[1730765489857,0.37647,158.98,158.83,0.12549]
[1730765490061,0.37647,158.96,158.83,0.12549]
[1730765490363,0.37647,158.96,158.84,9.8361144]
[1730765490364,0.12549,158.96,158.84,9.8361144]
[1730765490569,0.12549,158.96,158.85,20.0]
[1730765490863,0.12549,158.96,158.86,23.776884]
[1730765493366,0.12549,158.97,158.88,23.776884]
[1730765493560,6.29,158.98,158.88,23.776884]
[1730765494444,6.4357,158.99,158.9,23.776884]
[1730765495554,6.4357,158.99,158.92,23.776884]
[1730765495953,0.146,158.99,158.93,20.0]
[1730765496163,0.146,158.99,158.94,23.776884]
[1730765497646,0.146,158.99,158.96,23.776884]
[1730765499774,6.4357,158.99,158.96,23.776884]
[1730765500268,6.4357,158.99,158.93,20.0]
[1730765500645,6.4357,158.99,158.89,15.7341]
[1730765500867,6.4357,158.99,158.9,20.0]
[1730765501972,6.4357,158.99,158.89,15.7341]
[1730765502159,0.12549,158.98,158.87,6.294]
[1730765502559,0.25098,158.98,158.87,6.294]
[1730765502770,0.25098,158.98,158.88,11.16291387]
[1730765502971,0.25098,158.98,158.88,4.86891387]
[1730765504046,0.12549,158.96,158.88,4.86891387]
[1730765504243,0.25098,158.96,158.88,4.86891387]
[1730765504979,0.12549,158.94,158.82,15.7401]
[1730765505271,16.6008,158.93,158.8,0.3467254]
[1730765505485,0.12549,158.88,158.8,0.3467254]
[1730765505846,0.37647,158.92,158.8,0.3467254]
[1730765506161,0.25098,158.9,158.8,0.3467254]
[1730765506362,6.2928,158.91,158.8,0.3467254]
[1730765507482,22.14899,158.92,158.82,23.776884]
[1730765507979,6.2924,158.92,158.82,23.776884]
[1730765508279,6.2924,158.92,158.84,23.776884]
[1730765509456,6.2924,158.92,158.84,30.072284]
[1730765510084,16.6008,158.93,158.85,20.12549]
[1730765510266,22.8929,158.93,158.86,23.776884]
[1730765510603,6.2893,158.97,158.86,23.776884]
[1730765510764,6.2908,158.96,158.86,23.776884]
[1730765511358,23.0016,158.99,158.88,23.776884]
[1730765511856,0.12549,158.98,158.88,23.776884]
[1730765512185,0.12549,158.98,158.87,23.776884]
[1730765512768,0.12549,158.97,158.87,23.776884]
[1730765513684,0.12549,158.95,158.86,23.776884]
[1730765515079,22.018,158.96,158.86,23.776884]
[1730765515565,6.2916,158.94,158.86,23.776884]
[1730765517966,6.2916,158.94,158.86,30.071484]
[1730765518784,6.2916,158.94,158.88,23.776884]
[1730765519372,6.2916,158.94,158.87,23.776884]
[1730765520583,6.2916,158.94,158.86,23.776884]
[1730765520787,6.2916,158.94,158.88,23.776884]
[1730765521684,0.12549,158.95,158.88,23.776884]
[1730765521893,6.2908,158.96,158.88,23.776884]
[1730765522494,6.2908,158.96,158.88,45.805684]
[1730765523398,6.2908,158.96,158.89,20.0]
[1730765523788,32.4363,158.99,158.9,23.776884]
[1730765523980,6.29,158.98,158.91,6.2928]
[1730765524312,23.0016,158.99,158.92,23.776884]
[1730765524606,6.4357,158.99,158.92,23.776884]
[1730765526300,6.4357,158.99,158.92,30.069284]
[1730765526682,6.4357,158.99,158.92,45.800384]
[1730765526890,0.146,158.99,158.92,45.800384]
[1730765527088,6.4358,158.99,158.92,45.800384]
[1730765529608,0.146,158.99,158.92,45.800384]
[1730765529901,0.146,158.99,158.94,23.776884]
[1730765530484,6.4357,158.99,158.94,23.776884]
[1730765530697,0.146,158.99,158.94,23.776884]
[1730765531293,0.146,158.99,158.95,0.12549]
[1730765531899,0.146,158.99,158.96,22.018]
[1730765532101,0.146,158.99,158.97,23.776884]
[1730765532288,6.4358,158.99,158.93,22.022]
[1730765533006,6.4358,158.99,158.9,20.0]
[1730765534384,6.4358,158.99,158.91,30.069384]
[1730765534705,6.4358,158.99,158.91,45.801484]
[1730765538912,0.146,158.99,158.91,45.801484]
[1730765539100,0.146,158.99,158.93,23.776884]
[1730765539422,6.4883,159.03,158.93,23.776884]
[1730765539607,16.6460846,159.05,158.95,23.776884]
[1730765539608,0.1418846,159.05,158.95,23.776884]
[1730765539920,0.1418846,159.05,158.96,20.12549]
[1730765540090,0.1418846,159.05,158.97,23.776884]
[1730765540413,6.2877,159.04,158.97,23.776884]
[1730765540912,6.2877,159.04,158.99,23.776884]
[1730765541415,6.2877,159.04,158.98,23.776884]
[1730765542421,6.2877,159.04,158.97,23.776884]
[1730765543685,22.007,159.04,158.96,23.776884]
[1730765546627,23.1371,159.03,158.96,23.776884]
[1730765547698,22.0097,159.02,158.96,23.776884]
[1730765547898,22.0097,159.02,158.92,26.89088837]
[1730765548519,6.2885,159.02,158.92,26.89088837]
[1730765549240,6.2885,159.02,158.93,23.776884]
[1730765549400,6.2885,159.02,158.94,0.12549]
[1730765549604,6.2885,159.02,158.94,0.25098]
[1730765549802,6.2877,159.04,158.94,22.0198]
[1730765550300,6.2877,159.04,158.95,23.776884]
[1730765551403,0.1418846,159.05,158.97,23.776884]
[1730765551611,6.4292846,159.05,158.97,23.776884]
[1730765552124,6.4292846,159.05,158.99,23.776884]
[1730765552634,0.1418846,159.05,159.01,23.776884]
[1730765554101,0.1418846,159.05,159.01,30.065684]
[1730765554310,0.1418846,159.05,159.01,23.776884]
[1730765555813,0.1418846,159.05,159.01,30.065584]
[1730765556205,0.1418846,159.05,159.0,23.776884]
[1730765556427,0.1418846,159.05,158.99,6.2893]
[1730765556824,0.1418846,159.05,158.98,15.7252]
[1730765557009,0.1418846,159.05,158.98,22.0152]
[1730765557806,0.1418846,159.05,158.99,23.776884]
[1730765558813,6.2877,159.04,158.99,23.776884]
[1730765559751,6.2877,159.04,158.98,15.7252]
[1730765560334,22.007,159.04,158.95,15.7281]
[1730765561329,22.007,159.04,158.96,30.067484]
[1730765561529,22.007,159.04,158.96,23.776884]
[1730765563654,22.007,159.04,158.96,30.067584]
[1730765564940,6.2877,159.04,158.96,45.794784]
[1730765568052,0.1418846,159.05,158.97,0.12549]
[1730765568242,6.4292846,159.05,158.99,23.776884]
[1730765569570,6.4292846,159.05,158.85,15.8921402]
[1730765569571,6.4292846,159.05,158.94,15.7286]
[1730765569739,6.4292846,159.05,158.95,3.68788448]
[1730765569937,6.4292846,159.05,158.94,15.7286]
[1730765570672,22.1475846,159.05,158.94,15.7286]
[1730765570835,22.1475846,159.05,158.95,23.776884]
[1730765571041,22.1475846,159.05,158.95,30.067784]
[1730765571355,22.1475846,159.05,158.95,45.795984]
[1730765572357,6.4292846,159.05,158.96,0.12549]
[1730765572557,6.4292846,159.05,158.96,0.25098]
[1730765573560,6.4292846,159.05,158.98,23.776884]
[1730765577271,6.4292846,159.05,159.0,23.776884]
[1730765577967,0.1418846,159.05,159.0,23.776884]